Cogmind - Beta 13 @@@ ROGUE MODE // 2024.05.14 @ 21:21:16 Player: That1Guy Result: Self-destructed Performance ------------- Evolutions (1) 500 Regions Visited (3) 600 Robots Destroyed (20) 100 Value Destroyed (507) 507 Prototype IDs (4) 80 Alien Tech Used (0) 0 Bonus (4) 4 TOTAL SCORE: 1791 Bonus ------- High Alert Combat Kills 4 Cogmind --------- Core Integrity 371/400 Matter 12/300 Energy 250/250 System Corruption 0% Temperature Warning (371) Movement Walking (120) Location -9/Materials Parts ------- > --- POWER (2) -------- Ion Engine > --- PROPULSION (3) --- Improved Aluminum Leg Improved Aluminum Leg > --- UTILITY (2) ------ Improved Terrain Scanner Propulsion Shielding > --- WEAPON (2) ------- Advanced Beam Cannon > --- INVENTORY (5) ---- Light Ion Engine Beam Cannon Assault Rifle Improved Assault Rifle Peak State ------------ > --- POWER ------------ Ion Engine Light Ion Engine > --- PROPULSION ------- Flight Unit Improved Flight Unit Improved Flight Unit > --- UTILITY ---------- Improved Terrain Scanner Propulsion Shielding > --- WEAPON ----------- Improved Assault Rifle Grenade Launcher > --- INVENTORY -------- Beam Cannon Assault Rifle [Rating: 17] Favorites ----------- Power Light Ion Engine Engine Light Ion Engine Propulsion Improved Flight Unit Treads Light Treads Leg Improved Aluminum Leg Wheel Wheel Flight Unit Improved Flight Unit Utility Seismic Detector Device Seismic Detector Storage Small Storage Unit Protection Propulsion Shielding Weapon Assault Rifle Energy Gun EM Pulse Gun Energy Cannon Beam Cannon Ballistic Gun Assault Rifle Launcher Grenade Launcher Build | -11 -10 -10 -9 ------- Run | Yrd Mat Min Mat Slots Evolved 2 | . . . 2 Power 1 | . . . 1 Propulsion 1 | . . . 1 Utility . | . . . . Weapon . | . . . . Parts Attached 28 | 5 10 3 10 Power 4 | 1 . 1 2 Engine 4 | 1 . 1 2 Core . | . . . . Reactor . | . . . . Propulsion 10 | 2 4 . 4 Treads 2 | 2 . . . Leg 2 | . . . 2 Wheel 2 | . 2 . . Hover . | . . . . Flight 4 | . 2 . 2 Utility 6 | . 3 1 2 Device 3 | . 2 1 . Storage 1 | . 1 . . Processor . | . . . . Hackware . | . . . . Protection 2 | . . . 2 Artifact . | . . . . Weapon 8 | 2 3 1 2 Energy Gun 3 | 1 2 . . Energy Cannon 2 | . 1 . 1 Ballistic Gun 2 | 1 . . 1 Ballistic Cannon . | . . . . Launcher 1 | . . 1 . Special Weapon . | . . . . Impact Weapon . | . . . . Slashing Weapon . | . . . . Piercing Weapon . | . . . . Special Melee Weapon . | . . . . Unidentified Prototypes 2 | . 1 . 1 Parts Lost 2 | . 1 . 1 Power . | . . . . Propulsion . | . . . . Utility . | . . . . Weapon 2 | . 1 . 1 Highest Loss Streak 1 | . 1 . 1 To Critical Strikes . | . . . . Average Slot Usage (%) 91 | . 87 100 83 Engine 13 | . 14 14 11 Treads 3 | . 10 . . Leg 1 | . . . 6 Wheel 1 | . 3 . . Flight 21 | . 14 28 21 Device 19 | . 14 28 12 Storage 2 | . 7 . . Protection 2 | . . . 9 Energy Gun 3 | . 8 . . Energy Cannon 1 | . . 2 3 Ballistic Gun 12 | . 14 14 7 Launcher 7 | . . 11 10 Naked Turns . | . . . . Heaviest Build 16 | 7 12 10 16 Greatest Support 40 | 40 40 10 14 Greatest Overweight (x) 2 | . 2 . 1 Average Overweight (x) . | . . . . Largest Inventory Capacity 8 | 5 8 5 5 Average Capacity 5 | 5 6 5 5 Most Carried 5 | 5 5 5 5 Average Carried 3 | 1 2 4 3 Final Capacity 5 | 5 5 5 5 Final Carried 5 | 2 4 5 4 Class Distribution -------------------- 100% | Mutant Dominant Class ---------------- Mutant | -10/Materials Mutant | -10/Mines Mutant | -9/Materials Resources | -11 -10 -10 -9 ----------- Run | Yrd Mat Min Mat Matter Collected 401 | 235 . 136 30 Remotely . | . . . . Salvage Created 474 | 67 110 195 102 Parts 40 | 1 6 25 8 Haulers Intercepted . | . . . . Recyclers Shooed . | . . . . Parts Field Recycled . | . . . . Retrieved Matter . | . . . . Parts Self-Destructed . | . . . . Prevented . | . . . . Kills | -11 -10 -10 -9 ------- Run | Yrd Mat Min Mat Combat Hostiles Destroyed 15 | . 2 10 3 Guns 5 | . 2 1 2 Cannons 2 | . . 2 . AOE 7 | . . 7 . Classes Destroyed 7 | 1 2 3 1 Builder 1 | . . 1 . Tunneler 2 | . . 2 . Recycler 1 | 1 . . . Watcher 1 | . 1 . . Swarmer 6 | . . 6 . Grunt 8 | . 2 4 2 Sentry 1 | . . . 1 Best Kill Streak 5 | 1 2 5 2 Combat Bots Only 3 | . 2 3 2 Max Kills in Single Turn 3 | 1 1 3 1 Gunslinging . | . . . . Exploded 3 | . . 3 . Melee . | . . . . Uniques/NPCs Destroyed . | . . . . Combat | -11 -10 -10 -9 -------- Run | Yrd Mat Min Mat Hostile Shots Fired 50 | . 15 11 24 Missed 17 | . 6 1 10 Damage Taken 488 | . 132 162 194 Core 89 | . 41 19 29 Absorbed by Shields . | . . . . Redirected to Shielding 15 | . . . 15 Core Remaining (%) 88 | 100 . 76 . Volleys Fired 52 | 1 14 14 23 Largest 2 | 2 2 2 2 Hottest 80 | 60 60 80 68 Shots Fired 71 | 2 24 19 26 Gun 40 | 2 24 6 8 Cannon 18 | . . 4 14 Launcher 13 | . . 9 4 Special . | . . . . Kinetic 29 | 1 14 6 8 Thermal 18 | . . 4 14 Explosive 13 | . . 9 4 Electromagnetic 11 | 1 10 . . Robot Hit Streak 6 | . 5 5 6 Robot Miss Streak 3 | . 3 2 2 Penetration Max . | . . . . Secondary Targets . | . . . . Shots Hit Robots 38 | . 14 9 15 Core Hits 31 | 1 6 21 3 Critical Kills . | . . . . Critical Parts Destroyed . | . . . . Critical Strikes 1 | . 1 . . Corrupt 1 | . 1 . . Melee Attacks . | . . . . Impact . | . . . . Slashing . | . . . . Piercing . | . . . . Sneak Attacks . | . . . . Combat Hostiles . | . . . . Follow-up Attacks . | . . . . Damage Inflicted 1243 | 15 243 588 397 Guns 339 | 15 183 39 102 Cannons 295 | . . 68 227 Explosions 609 | . 60 481 68 Melee . | . . . . Ramming . | . . . . Kinetic 264 | . 123 39 102 Thermal 355 | . 60 68 227 Explosive 549 | . . 481 68 Electromagnetic 75 | 15 60 . . Impact . | . . . . Slashing . | . . . . Piercing . | . . . . Highest Corruption . | . . . . Average Corruption . | . . . . Corruption Purged . | . . . . Corruption Blocked . | . . . . Overload Shots . | . . . . Overflow Damage . | . . . . Projectiles . | . . . . Explosions . | . . . . Melee . | . . . . Knockbacks . | . . . . Impact . | . . . . Kinetic . | . . . . Secondary . | . . . . Self-Inflicted Damage 22 | . . 22 . Shots 1 | . . 1 . Rammed . | . . . . Targets Rammed . | . . . . Kicked . | . . . . Crushed . | . . . . Highest Temperature 371 | . 51 153 371 Average Temperature 88 | . 19 65 184 Received Heat Transfer 237 | . 78 75 84 Effects 2 | . . . 2 Shutdowns 1 | . . . 1 Matter Decay 1 | . . . 1 Siege Activations . | . . . . Robots Corrupted . | . . . . Combat Hostiles . | . . . . Parts Fried . | . . . . Impact Corruptions . | . . . . Robots Melted 1 | . . . 1 Combat Hostiles 1 | . . . 1 Parts Melted 1 | . . . 1 Heat Transferred 605 | . 50 148 407 Parts Sabotaged . | . . . . Parts Stolen . | . . . . Parts Stripped . | . . . . Power Chain Reactions 1 | . 1 . . Alert | -11 -10 -10 -9 ------- Run | Yrd Mat Min Mat Peak Influence 425 | 5 105 425 270 Initial 165 | . 3 40 165 Average 166 | . 58 278 205 Maximum Alert Level 2 | . . 2 1 Low Security (%) 69 | 100 100 45 53 Level 1 13 | . . 8 46 Level 2 17 | . . 46 . Level 3 . | . . . . Level 4 . | . . . . Level 5 . | . . . . High Security . | . . . . Max Security . | . . . . Squads Dispatched 1 | . . 1 . Investigation . | . . . . Extermination . | . . . . Reinforcement . | . . . . Assault 1 | . . 1 . Garrison . | . . . . Intercept . | . . . . Searches Triggered . | . . . . Construction Impeded . | . . . . Haulers Reinforced . | . . . . Active Scanning Responses . | . . . . Cargo Convoy Interrupts . | . . . . Stealth | -11 -10 -10 -9 --------- Run | Yrd Mat Min Mat Distress Signals 2 | . 1 . 1 Communications Jammed . | . . . . Distress Signals . | . . . . Times Spotted 15 | . 7 5 3 Peak Tracking Total 4 | . 4 2 2 Tactical Retreats . | . . . . Traps | -11 -10 -10 -9 ------- Run | Yrd Mat Min Mat Traps Triggered . | . . . . Indirectly . | . . . . Trap Hack Attempts . | . . . . Triggered . | . . . . Disarmed . | . . . . Reprogrammed . | . . . . Reused . | . . . . Traps Extracted . | . . . . Installed . | . . . . Triggered . | . . . . Machines | -11 -10 -10 -9 ---------- Run | Yrd Mat Min Mat Machines Disabled 5 | . 1 4 . Max in Single Turn 4 | . 1 4 . Machines Repaired . | . . . . Machines Dismantled . | . . . . Machines Sabotaged . | . . . . Overloaded Fab Kills . | . . . . Hacking | -11 -10 -10 -9 --------- Run | Yrd Mat Min Mat Machines Accessed 3 | . 2 . 1 Terminals 3 | . 2 . 1 Fabricators . | . . . . Repair Stations . | . . . . Recycling Units . | . . . . Scanalyzers . | . . . . Garrison Access . | . . . . Total Hacks 10 | . 6 . 4 Successful 9 | . 5 . 4 Failed 1 | . 1 . . Catastrophic . | . . . . Database Lockouts . | . . . . Manual . | . . . . Terminals 10 | . 6 . 4 Fabricators . | . . . . Repair Stations . | . . . . Recycling Units . | . . . . Scanalyzers . | . . . . Garrison Access . | . . . . Terminal Hacks 9 | . 5 . 4 Record 6 | . 2 . 4 Prototype ID Bank 1 | . 1 . . Alert Level 1 | . 1 . . Locate Traps 1 | . 1 . . Fabricator Hacks . | . . . . Repair Station Hacks . | . . . . Recycling Unit Hacks . | . . . . Scanalyzer . | . . . . Garrison Access Hacks . | . . . . Unauthorized Hacks . | . . . . Terminals . | . . . . Fabricators . | . . . . Repair Stations . | . . . . Recycling Units . | . . . . Scanalyzers . | . . . . Garrison Access . | . . . . Data Cores Recovered . | . . . . Used . | . . . . Hacking Detections 3 | . 2 . 1 Full Trace Events . | . . . . Feedback Events . | . . . . Feedback Blocked . | . . . . Robot Schematics Acquired . | . . . . Robots Built . | . . . . Authchips . | . . . . Time . | . . . . Total Robot Build Rating . | . . . . Part Schematics Acquired . | . . . . Parts Built . | . . . . Authchips . | . . . . Time . | . . . . Total Part Build Rating . | . . . . Parts Repaired . | . . . . Time . | . . . . Parts Recycled . | . . . . Recycled Matter . | . . . . Retrieved Matter . | . . . . Retrieved Components . | . . . . Parts Scanalyzed . | . . . . Part Schematics Acquired . | . . . . Parts Damaged . | . . . . Bothacking | -11 -10 -10 -9 ------------ Run | Yrd Mat Min Mat Used RIF Installer . | . . . . Robots Hacked . | . . . . Non-combat . | . . . . Combat . | . . . . Robot Hacks Applied . | . . . . Relay Couplers Released . | . . . . Fabnet Peak Effective % . | . . . . Robots Rewired . | . . . . Allies Hacked . | . . . . Hacks Repelled . | . . . . Allies | -11 -10 -10 -9 -------- Run | Yrd Mat Min Mat Total Allies 1 | . . 1 . Largest Group 1 | . . 1 . Highest-Rated Group 31 | . . 31 . Highest-Rated Ally 31 | . . 31 . Total Orders . | . . . . Ally Attacks . | . . . . Total Damage . | . . . . Kills . | . . . . Allies Corrupted . | . . . . Allies Melted . | . . . . Intel | -11 -10 -10 -9 ------- Run | Yrd Mat Min Mat Robot Analysis Total . | . . . . Derelict Logs Recovered 2 | . . 2 . Drone Launches . | . . . . Drone Recoveries . | . . . . Exploration | -11 -10 -10 -9 ------------- Run | Yrd Mat Min Mat Turns Passed 766 | 72 246 286 162 Spaces Moved 1132 | 47 333 662 90 Core 16 | 16 . . . Treads 65 | 31 34 . . Legs 8 | . . . 8 Wheels 33 | . 33 . . Hover . | . . . . Flight 1010 | . 266 662 82 Fastest Speed 34 | 50 37 37 34 Average Speed 46 | 122 54 37 50 Slowest Speed 190 | 160 185 37 190 Overloaded Moves . | . . . . Propulsion Burnouts . | . . . . Robots Hopped 11 | . 2 9 . Cave-ins Triggered . | . . . . Exploration Rate (%) 42 | 5 55 99 10 Regions Visited 3 Branch Regions 1 Pre-discovered Areas . | . . . . Known Exits Taken . | . . . . Unknown Exits Taken 3 | 1 1 1 . Scrap Searched 1 | . . 1 . Spaces Dug . | . . . . Terrain Destroyed 107 | . 5 79 23 Melee . | . . . . Projectile . | . . . . AOE 107 | . 5 79 23 Terrain Rammed . | . . . . Walls Destroyed . | . . . . Machines Disabled . | . . . . Actions | -11 -10 -10 -9 --------- Run | Yrd Mat Min Mat Total 1287 | 60 371 675 181 Wait 48 | . . 1 47 Move 1108 | 46 328 644 90 Hop 10 | . 2 8 . Pick Up 23 | 7 11 2 3 Fast Attach 2 | 1 . . 1 Attach 13 | 4 4 . 5 Detach 3 | . . . 3 Swap 13 | . 6 3 4 Drop 15 | 1 6 3 5 Fire 52 | 1 14 14 23 Melee . | . . . . Ram . | . . . . Kick . | . . . . Crush . | . . . . Escape Stasis . | . . . . Rewire . | . . . . Trap . | . . . . Miscellaneous . | . . . . Route ------- -11/Scrapyard -10/Materials (discovered 3 exits: *Mat x2 / [*Min]) -10/Mines (discovered 3 exits: *Mat x2 / [Sub]) -9/Materials (discovered 1 exit: Mat) History --------- Turn | Location | Event 8 | -11/Scrapyard | Discovered new exit (range 15) 73 | -11/Scrapyard | Entered Materials 226 | -10/Materials | Discovered new exit (range 4) 275 | -10/Materials | Discovered new exit (range 13) 276 | -10/Materials | Discovered new exit (range 7) 310 | -10/Materials | Build established: Mutant 319 | -10/Materials | Entered Mines 340 | -10/Mines | Discovered new exit (range 8) 348 | -10/Mines | Learned 2 Materials zone layouts 358 | -10/Mines | Learned 4 Materials zone layouts 368 | -10/Mines | YI-UF0 nonchalantly dropped a Grenade Launcher on the ground 421 | -10/Mines | Discovered new exit (range 13) 433 | -10/Mines | Discovered new exit (range 8) 589 | -10/Mines | Met a Derelict testing a Signal Generator 605 | -10/Mines | Entered Materials 605 | -9/Materials | Evolved 2 slots: Power x1, Propulsion x1 606 | -9/Materials | Identified exit to Materials 767 | -9/Materials | Self-destructed Last Messages --------------- [Achievement: Oops] The achievement interface (ESC then open Records) offers an effective way to explore all of your earned achievements as well as seek out new goals for future runs. Processing Tank disabled. Critical hit (Burn: +37). Grenade Launcher destroyed. Y-45 Defender heat short circuits Heat Sink. Y-45 Defender heat short circuits Imp. Ion Engine. Overheating: Matter decay (-2). K-01 Serf collects debris. Y-45 Defender heat short circuits Lgt. Treads. Melted Hvy. Assault Rifle. Y-45 Defender heat damages Heat Sink. [Achievement: It's Just You] Y-45 Defender critical meltdown. K-01 Serf collects debris. Power failure, Ion Engine shutdown. Map ----- +----------------------------------------------------+ | ????????????????????????????????????????? | | ????????????????????????????????????????? | | ????????????????????????????????????????# | | ????????????????????????????????????????? | | ???????????????????????????#???????#????? | | ??????????????????????????????#?????????? | | ????????????????????????????????????????? | | ????????????????????????????????????????? | | ??????????????????????????############??? | | ??????????????????????????# # T #?#? | | ?????????????????????????## # #??? | | ?????????????????????????## # #?#? | | ?????????????????????#????# + """ #??? | | ??????????????????????#???# # """ #??# | | ??????????????????????????# # """ ##?? | | ?????????????????????#????# ########??? | | ## #???????????#?# ########### | | """ """ ## #??????????##?# # # | | """ """ ## ##????????????# # # | | """ """ ## #???????????#?# # """ # | | ## #????????#????# # """"" # | | ####+###### #???#???#???#?# + """"" # | | #???????????#?# # """"" # | | ##### #???########### # """ # | | #???# #????# # # ]!# | | #######?#?# #?#??# @# ########### | | ??????????#+###### """ # ##????????# | | #####?????# # "" # ##???????#? | | #?????# # k "" # #?????????? | | #?????# """# == ""[%# #?????????? | | #?????# """# = """=# #?##?????#? | | #?????# """# # ## #??#???? | | #?????# # # # #?????#? | | #?????######+####+##### #??###?# | | #/########### =[ ##?????#??? | | ! = #?????????? | | ######### =! ##????????? | | ############## #######????#????? | | " # #?# #????????#??????? | | " # #?#### ###???????#??????? | | " + #????# #????????????????? | | # #????# ?????#??????????? | | ###+#######???? #???????????????? | | " #?# #?????????# #???????????????? | | " ### ##????????# ???????????????? | | " #?#??????# #???????????????? | | #???????? +?????????#?????? | | #????????# ???????????????? | | ##+#######????????# #???????????????? | | #??????????## ##???????????????? | +----------------------------------------------------+ Best States ------------- Heat Dissipation 28 Energy Generation 15 Energy Capacity 275 Matter Stores 282 Matter Capacity 300 Sight Range 16 Terrain Scan Range 16 Terrain Scan Density 10 Propulsion Shielding 33 Evasion (%) 63 Recoil Reduction 2 Item Schematics ----------------- None Robot Schematics ------------------ None Fabricated ------------ Nothing Alien Tech Used ----------------- None Achievements -------------- It's Just You Oops Risk Taker Challenges ------------ None Game ------ Seed ThermoelectricSurgeClaw Manual? 0 Play Time 00:28:44 Cumulative 2.8 hours Start 2024.05.14 @ 20:53:23 End 2024.05.14 @ 21:21:16 Sessions 1 Manual Loads 0 Difficulty Rogue Special Mode None Game No. 4 Rogue 4 Adventurer 0 Explorer 0 Win Type - Total 0 Types 0/0/0/0/0/0/0/0/0 Lore% 2 Gallery% 5 Achievement% 4 Wizard Run 0 Options --------- Layout 1 ASCII 0 Keyboard 0 Movement Mouse Keybinds 0 Fullscreen 1 Font 24/Smallcaps Map View 50x35 Zoom Use 0% Tactical HUD 0 Map Filters NONE Filters NONE Steam 1 RUN: 0f4b4e96-8aa7-467c-b7c5-707c49bced1c